[Event "Azerbaijan-ch 1st League 2025"]
[Site "Baku"]
[Date "2025.01.08"]
[Round "3.4"]
[White "Davudov, Tunar"]
[Black "Rustamov, Rustam"]
[Result "1-0"]
[Annotator "TA"]
[ECO "E05"]
[WhiteElo "2225"]
[BlackElo "2305"]
[PlyCount "115"]
[EventDate "2025.01.05"]
[EventType "swiss"]
[EventCountry "AZE"]
[SourceTitle "playchess.com"]
[Source "ChessBase"]
[SourceQuality "1"]
[TimeControl "40/5400+30:1800+30"]

{[%evp 23,115,14,19,15,20,0,4,6,4,8,7,6,15,9,12,18,14,0,0,-6,19,0,12,0,0,23,32,34,68,66,60,40,50,61,50,50,66,0,60,60,83,7,26,3,16,0,135,142,143,0,0,0,0,0,0,0,0,0,0,0,0,0,0,0,0,0,0,0,0,0,405,395,515,471,806,783,747,490,1790,1711,2240,2039,2214,1724,29981,29982,29982,29983,29983,29984,29984,29984,29990,29991]} 1. d4 {[%emt 0:01:41]} Nf6 {[%emt 0:00:35]} 2. c4 {[%emt 0:00:30]} e6 {[%emt 0:00:17]} 3. Nf3 {[%emt 0:00:47]} d5 {[%emt 0:00:19]} 4. g3 {[%emt 0:00:20]} Be7 {[%emt 0:00:07]} 5. Bg2 {[%emt 0:00:08]} O-O {[%emt 0:00:06]} 6. O-O {[%emt 0:01:24]} dxc4 {[%emt 0:00:52]} 7. Qc2 {[%emt 0:00:10]} a6 {[%emt 0:00:10]} 8. a4 {[%emt 0:00:25]} Bd7 {[%emt 0:00:12]} 9. Qxc4 {[%emt 0:00:39]} Bc6 {[%emt 0:00:09]} 10. Bg5 {[%emt 0:01:54]} Nbd7 {[%emt 0:00:29]} 11. Nc3 {[%emt 0:00:51]} a5 {[%emt 0:01:11]} 12. Rfd1 {[%emt 1:27:41]} h6 {[%emt 0:02:16]} 13. Bxf6 {[%emt 0:00:00]} Nxf6 {[%emt 0:00:27]} 14. h4 {[%emt 0:00:00]} Bd5 {[%emt 0:05:32]} 15. Qd3 {[%emt 0:00:00]} Bxf3 {[%emt 0:01:00]} 16. Bxf3 {[%emt 0:00:00]} c6 {[%emt 0:00:09]} 17. e4 {[%emt 0:00:00]} Qb6 {[%emt 0:01:41]} 18. e5 {[%emt 0:00:00]} Nd5 {[%emt 0:00:55]} 19. Be4 {[%emt 0:00:00]} Rad8 {[%emt 0:03:29]} 20. Rd2 {[%emt 0:00:00]} Bb4 {[%emt 0:20:23]} 21. Qc4 {[%emt 0:00:00]} Qa6 {[%emt 0:02:46]} 22. Qb3 {[%emt 0:00:00]} c5 {[%emt 0:07:00]} 23. Rad1 {[%emt 0:00:00]} c4 {[%emt 0:01:40]} 24. Qc2 {[%emt 0:00:00]} Bxc3 {[%emt 0:00:29]} 25. bxc3 {[%emt 0:00:00]} b5 {[%emt 0:00:05]} 26. axb5 {[%emt 0:00:00]} Qxb5 {[%emt 0:00:03]} 27. Rb1 {[%emt 0:00:00]} Qd7 {[%emt 0:01:54]} 28. Ra1 {[%emt 0:00:00]} Ra8 {[%emt 0:00:31]} 29. Ra3 $1 {[%emt 0:00:00]} Rfb8 {[%emt 0:03:14]} 30. Qd1 {[%emt 0:00:00]} (30. Qa2 $14) 30... Rb5 {[%emt 0:03:06]} ({Black should play} 30... a4 $11) 31. Rda2 $14 {[%emt 0:00:16]} Qc7 {[%emt 0:00:48]} 32. Qa1 {[%emt 0:01:45]} (32. Qf3 $16) 32... h5 {[%emt 0:01:11]} 33. Ra4 {[%emt 0:01:49]} g6 {[%emt 0:43:54]} 34. R2a3 {[%emt 0:02:20]} (34. Qf1 $5) 34... Ra6 {[%emt 0:00:00] [#]} (34... Rb3 $11 {remains equal.}) 35. Qa2 $1 $16 {[%emt 0:00:32]} Rb3 {[%emt 0:00:00]} 36. Bxd5 {[%emt 0:02:18]} (36. Rxb3 $16 cxb3 37. Qxb3) 36... Rxa3 $11 {[%emt 0:00:00]} 37. Qxa3 {[%emt 0:00:05]} exd5 {[%emt 0:00:00]} 38. Qc5 {[%emt 0:00:34]} Qxc5 {[%emt 0:00:00]} 39. dxc5 {[%emt 0:00:05]} Kf8 {[%emt 0:00:00]} 40. Kg2 {[%emt 0:00:00]} Ke7 {[%emt 0:00:00]} 41. Kf3 $1 {[%emt 0:00:42]} Kd7 {[%emt 0:00:00]} 42. Ke3 $1 {[%emt 0:00:07]} Kc6 {[%emt 0:00:00]} 43. Kd4 {[%emt 0:00:05]} Ra8 {[%emt 0:00:00]} 44. f3 {[%emt 0:01:25]} Kb5 {[%emt 0:00:00]} 45. Ra3 {[%emt 0:00:15]} a4 {[%emt 0:00:00]} 46. g4 {[%emt 0:01:17]} g5 $2 {[%emt 0:04:00][%mdl 8192]} (46... hxg4 $11 47. fxg4 Kc6) 47. hxg5 $18 {[%emt 0:05:51]} (47. Kxd5 gxh4 48. gxh5 h3 $19) (47. gxh5 gxh4 48. Kxd5 h3 $19) 47... h4 {[%emt 0:08:05]} 48. f4 {[%emt 0:06:08]} (48. Kxd5 h3 $16) 48... h3 {[%emt 0:00:13]} (48... Rg8 $142 49. Ra1 (49. Kxd5 Rd8+ 50. Ke4 h3 $16) 49... h3) 49. f5 $18 {[%emt 0:04:28]} (49. Kxd5 Rd8+ (49... h2 50. Ra1 $17) 50. Ke4 h2 $17 (50... Kxc5 $2 {too greedy.} 51. Rxa4 Rh8 52. Ra5+ Kc6 53. Ra1 $18)) 49... h2 {[%emt 0:00:23]} 50. Ra1 $1 {[%emt 0:00:14]} a3 {[%emt 0:00:36]} (50... Kc6 $142 51. e6 fxe6) 51. g6 $1 $18 {[%emt 0:01:36]} fxg6 {[%emt 0:00:48]} 52. f6 {[%emt 0:00:21]} Rh8 {[%emt 0:02:09]} 53. Rh1 {[%emt 0:02:40]} a2 {[%emt 0:00:43]} 54. e6 {[%emt 0:00:24]} a1=Q {[%emt 0:23:33]} 55. Rxa1 {[%emt 0:00:07]} h1=Q {[%emt 0:00:30]} 56. Rxh1 {[%emt 0:00:06]} Rxh1 {[%emt 0:00:00]} 57. e7 {[%emt 0:00:31]} Ka6 {[%emt 0:00:00]} 58. f7 {[%emt 0:00:15]} (58. e8=R Rd1+ 59. Ke5 Re1+ 60. Kxd5 Rxe8 $18) 1-0

[Event "Azerbaijan-ch 1st League 2025"]
[Site "Baku"]
[Date "2025.01.08"]
[Round "3.5"]
[White "Garayev, Kanan"]
[Black "Ibrahimli, Murad"]
[Result "0-1"]
[Annotator "TA"]
[ECO "B50"]
[WhiteElo "2340"]
[BlackElo "2415"]
[PlyCount "34"]
[EventDate "2025.01.05"]
[EventType "swiss"]
[EventCountry "AZE"]
[SourceTitle "playchess.com"]
[Source "ChessBase"]
[SourceQuality "1"]
[TimeControl "40/5400+30:1800+30"]

{[%evp 9,34,-6,0,-5,0,0,-4,-22,-10,-47,-37,-102,-99,-118,-104,-100,-106,-147,-149,-156,-158,-179,-181,-279,-284,-218,-215]} 1. e4 {[%emt 0:00:53]} c5 {[%emt 0:00:57]} 2. Nf3 {[%emt 0:01:04]} d6 {[%emt 0:00:59]} 3. c3 {[%emt 0:01:28]} Nf6 {[%emt 0:00:50]} 4. Be2 {[%emt 0:00:18]} Bg4 {[%emt 0:03:13]} 5. e5 {[%emt 0:16:06]} dxe5 {[%emt 0:00:29]} 6. Nxe5 {[%emt 0:00:26]} Bxe2 {[%emt 0:00:56]} 7. Qxe2 {[%emt 0:00:12]} e6 {[%emt 0:06:48]} 8. Qb5+ {[%emt 0:15:02]} Nbd7 {[%emt 0:00:16]} 9. d4 {[%emt 0:01:29]} (9. Nxd7 Qxd7 10. Qxd7+ Kxd7 11. d3) 9... cxd4 {[%emt 0:04:56]} 10. O-O {[%emt 0:02:53]} (10. cxd4 $15 Qb6 11. Qxb6 Nxb6 12. Ke2) 10... a6 {[%emt 0:05:35]} 11. Qe2 {[%emt 0:05:28]} Nxe5 {[%emt 0:01:11]} 12. Qxe5 {[%emt 0:00:07]} d3 {[%emt 0:03:55]} (12... dxc3 {simplifies} 13. Nxc3 Bd6 14. Qe2 Qa5) 13. Rd1 {[%emt 0:07:15]} Bd6 {[%emt 0:02:58]} 14. Qd4 {[%emt 0:01:15]} Qc7 $36 {[%emt 0:00:06][%mdl 2048] Black has strong initiative.} 15. g3 {[%emt 0:10:25] White is weak on the light squares} O-O-O {[%emt 0:00:52][%cal Od6g3] ...Bxg3! would now be deadly.} 16. Qe3 {[%emt 0:05:46]} (16. Qh4 $142) 16... Bc5 $19 {[%emt 0:00:13]} 17. Qf3 {[%emt 0:00:02]} Rd5 {[%emt 0:00:06]} 0-1

[Event "Azerbaijan-ch 1st League 2025"]
[Site "Baku"]
[Date "2025.01.08"]
[Round "3.6"]
[White "Rzayev, Chingiz"]
[Black "Ahmad, Khagan"]
[Result "0-1"]
[Annotator "TA"]
[ECO "B23"]
[WhiteElo "2153"]
[BlackElo "2406"]
[PlyCount "114"]
[EventDate "2025.01.05"]
[EventType "swiss"]
[EventCountry "AZE"]
[SourceTitle "playchess.com"]
[Source "ChessBase"]
[SourceQuality "1"]
[TimeControl "40/5400+30:1800+30"]

{[%evp 10,114,-37,-35,-7,-14,-14,-53,-56,-49,-45,-60,-50,-47,-44,-46,-47,-57,-58,-50,-64,-79,-79,-89,-85,-80,-90,-81,-83,-83,-78,-77,-79,-83,-82,-83,-92,-92,-85,-91,-90,-91,-84,-90,-89,-79,-79,-77,-71,-96,-86,-82,-51,-51,-31,-39,-39,-39,-39,-33,-16,-41,-8,-8,-8,-11,-8,-114,-114,-103,-33,-64,-59,-133,-133,-148,-148,-148,-148,-333,-129,-1004,-884,-2994,-1612,-29967,-29969,-29970,-29971,-29967,-29972,-29971,-29971,-29979,-29980,-29979,-29973,-29980,-29981,-29981,-29977,-29982,-29983,-29985,-29986,-29986,-29986]} 1. e4 {[%emt 0:00:06][%cal Be2e4,Be4e5,Be5d6][%mdl 32]} c5 {[%emt 0:02:30]} 2. Nc3 {[%emt 0:00:08]} Nc6 {[%emt 0:00:05]} 3. f4 {[%emt 0:00:04]} g6 {[%emt 0:00:06]} 4. Nf3 {[%emt 0:00:05]} Bg7 {[%emt 0:00:04]} 5. Bc4 {[%emt 0:00:25]} e6 {[%emt 0:01:12]} 6. e5 {[%emt 0:00:29]} Nh6 {[%emt 0:03:36]} 7. Ne4 {[%emt 0:00:59]} O-O {[%emt 0:00:04]} 8. c3 {[%emt 0:08:44]} d5 {[%emt 0:01:30]} 9. exd6 {[%emt 0:00:42]} b6 {[%emt 0:00:19]} 10. O-O {[%emt 0:15:48][%cal Of3e5]} Nf5 {[%emt 0:00:29]} 11. d3 {[%emt 0:09:49]} Bb7 {[%emt 0:01:10]} 12. Qe1 {[%emt 0:06:23]} Na5 {[%emt 0:03:06][%cal Oa5c4]} (12... Nxd6 {simplifies} 13. Bb3 Ba6 14. Nf2 Qc7) 13. Ne5 {[%emt 0:06:33][%cal Oe5f7]} Nxd6 {[%emt 0:02:44]} 14. Nxd6 {[%emt 0:00:33]} Qxd6 {[%emt 0:00:02]} 15. Be3 {[%emt 0:00:49]} f6 {[%emt 0:02:52]} 16. Nf3 {[%emt 0:01:45]} Nxc4 {[%emt 0:05:28]} 17. dxc4 {[%emt 0:00:05]} Qd3 {[%emt 0:00:20]} 18. b3 {[%emt 0:05:17]} Rad8 {[%emt 0:00:26] Black is much more active.} 19. Rd1 {[%emt 0:01:01]} Qc2 {[%emt 0:01:08]} 20. Rxd8 {[%emt 0:00:16]} Rxd8 {[%emt 0:00:03]} 21. Rf2 {[%emt 0:00:30]} Qd1 {[%emt 0:04:49]} 22. Rd2 {[%emt 0:19:38]} Qxe1+ {[%emt 0:12:05]} 23. Nxe1 {[%emt 0:00:17]} Rxd2 {[%emt 0:00:04]} 24. Bxd2 $17 {[%emt 0:00:03][%mdl 4096] Endgame KBB-KBN} Bf8 {[%emt 0:00:23]} 25. a3 {[%emt 0:04:09]} h6 {[%emt 0:00:43]} 26. h4 {[%emt 0:00:59]} Kf7 {[%emt 0:01:21]} 27. Kf2 {[%emt 0:00:49]} e5 {[%emt 0:02:00]} 28. fxe5 {[%emt 0:00:51]} fxe5 {[%emt 0:00:16]} 29. b4 {[%emt 0:03:37]} Ke6 {[%emt 0:01:44]} 30. Be3 {[%emt 0:05:26]} Ba6 {[%emt 0:11:56]} 31. bxc5 $1 {[%emt 0:01:17]} Bxc5 {[%emt 0:00:10]} 32. Bxc5 {[%emt 0:00:06]} bxc5 $15 {[%emt 0:00:04] KB-KN} 33. Nd3 {[%emt 0:00:21]} Bxc4 {[%emt 0:01:13]} 34. Nxc5+ {[%emt 0:00:06]} Kd5 {[%emt 0:00:05]} 35. Nd7 {[%emt 0:00:38]} Bb5 {[%emt 0:04:12]} 36. Nf6+ $1 {[%emt 0:01:59]} Kc4 {[%emt 0:02:11]} 37. Ng4 {[%emt 0:00:05]} Kxc3 {[%emt 0:18:07]} 38. Nxe5 {[%emt 0:00:06]} (38. Nxh6 $11 {remains equal.} Bd7 39. Ke3) 38... Be8 $1 $17 {[%emt 0:00:16]} 39. Ke3 {[%emt 0:01:22]} a5 {[%emt 0:00:08]} (39... Kb3 $17 40. Kd3 Kxa3) 40. g4 {[%emt 0:00:00]} a4 {[%emt 0:00:00]} 41. Nd3 {[%emt 0:11:28]} (41. Ke4 $15) 41... Kb3 {[%emt 0:01:59]} 42. Kd4 {[%emt 0:01:08]} Kxa3 {[%emt 0:00:10]} 43. Kc3 {[%emt 0:00:28] [#]} Ka2 $1 {[%emt 0:06:00]} 44. Kc2 $2 {[%emt 0:05:28]} (44. Ne5 $17 {only move.}) 44... Bb5 $2 {[%emt 0:02:08]} (44... Bf7 $19 {has better winning chances. aiming for ...Be6.} 45. g5 h5 46. Nb4+ Ka1) 45. Ne5 $2 {[%emt 0:05:03][%mdl 8192]} (45. Nb4+ $17 Ka1 46. Nd5) 45... a3 $19 {[%emt 0:02:33]} 46. g5 {[%emt 0:04:08]} h5 {[%emt 0:00:44]} 47. Nxg6 {[%emt 0:04:08] [#]} Bd3+ $1 {[%emt 0:00:37][%mdl 512]} 48. Kxd3 {[%emt 0:00:02] KN-KPP} Kb3 {[%emt 0:00:10]} 49. Nf4 {[%emt 0:01:58]} a2 {[%emt 0:00:05]} 50. Ke4 {[%emt 0:00:17]} a1=Q {[%emt 0:00:06]} (50... a1=B $2 {too greedy.} 51. Nxh5 (51. Kf5 Bd4 $18) 51... Bc3 52. g6 $18 (52. Kf5 Be1 $18)) 51. Nxh5 {[%emt 0:00:32]} Qa4+ {[%emt 0:02:57]} 52. Kf5 {[%emt 0:00:09]} Qd7+ {[%emt 0:00:21]} 53. Kg6 {[%emt 0:01:50]} Qe8+ {[%emt 0:00:11]} 54. Kh6 {[%emt 0:00:01]} Qh8+ {[%emt 0:00:26]} 55. Kg6 {[%emt 0:00:00]} Kc4 {[%emt 0:00:30]} 56. Ng7 {[%emt 0:02:25]} Qxh4 {[%emt 0:00:31]} 57. Nf5 {[%emt 0:00:17]} Qf4 {[%emt 0:00:06]} 0-1

[Event "Azerbaijan-ch 1st League 2025"]
[Site "Baku"]
[Date "2025.01.08"]
[Round "3.7"]
[White "Orujov, Farid"]
[Black "Alizada, Agshin"]
[Result "1-0"]
[Annotator "TA"]
[ECO "C03"]
[WhiteElo "2301"]
[BlackElo "2116"]
[PlyCount "55"]
[EventDate "2025.01.05"]
[EventType "swiss"]
[EventCountry "AZE"]
[SourceTitle "playchess.com"]
[Source "ChessBase"]
[SourceQuality "1"]
[TimeControl "40/5400+30:1800+30"]

{[%evp 9,55,21,21,17,35,30,36,29,33,29,28,23,36,27,55,34,34,18,29,19,63,43,39,62,142,116,158,120,231,210,216,211,569,555,544,530,535,507,508,510,1186,1049,1495,1501,1434,1574,29997,29998]} 1. e4 {[%emt 0:00:01]} e6 {[%emt 0:00:20]} 2. d4 {[%emt 0:00:07]} d5 {[%emt 0:00:05]} 3. Nd2 {[%emt 0:00:03]} h6 {[%emt 0:00:05]} 4. Ngf3 {[%emt 0:00:20]} Nf6 {[%emt 0:00:04][%cal Bg8f6,Bf6d7,Bd7b6][%mdl 32]} 5. e5 {[%emt 0:00:04]} Nfd7 {[%emt 0:00:06]} 6. c4 {[%emt 0:00:27]} dxc4 {[%emt 0:00:36]} 7. Bxc4 {[%emt 0:00:24]} Nb6 {[%emt 0:00:07]} 8. Bd3 {[%emt 0:02:00] White is slightly better.} Nc6 {[%emt 0:00:25]} 9. Ne4 {[%emt 0:07:40]} Nb4 {[%emt 0:03:50]} 10. Bb1 {[%emt 0:01:05]} N4d5 {[%emt 0:00:08]} 11. a3 {[%emt 0:05:54]} a5 {[%emt 0:00:37]} 12. h4 {[%emt 0:02:12]} Bd7 {[%emt 0:02:34]} 13. Bd3 {[%emt 0:01:01]} Bc6 {[%emt 0:04:00]} 14. Rh3 {[%emt 0:09:08]} Qe7 {[%emt 0:09:53]} 15. Bd2 {[%emt 0:02:25]} a4 {[%emt 0:18:24]} 16. Rc1 {[%emt 0:02:06]} O-O-O {[%emt 0:08:01] [#]} (16... Qd7 $14) 17. Rxc6 $1 $16 {[%emt 0:17:14][%mdl 512]} bxc6 {[%emt 0:00:05]} 18. Nc5 {[%emt 0:00:04] White is more active.} Rg8 {[%emt 0:11:12]} (18... Qe8 $16 19. Qc2 (19. Nxa4 Nxa4 20. Qxa4 Kd7 $16) 19... Ne7) 19. Bh7 $18 {[%emt 0:02:30][%cal Bd3h7,Bh7c2,Bc2a4,Ba4c6][%mdl 1056] White has strong compensation.} (19. Nxa4 $6 g5 $16) 19... Rh8 {[%emt 0:01:59] [#]} 20. Qe2 $1 {[%emt 0:00:40] White wants to mate with Qa6+.} Re8 $2 {[%emt 0:01:55]} ({And not} 20... Rxh7 21. Qa6+ Kb8 22. Qb7#) (20... Rd7 {is more resistant.}) 21. Qa6+ {[%emt 0:01:06]} Kd8 {[%emt 0:00:14]} 22. Bc2 {[%emt 0:01:05]} f5 {[%emt 0:01:54][%cal Bf7f5,Bf5f4][%mdl 32]} 23. Bxa4 {[%emt 0:02:07]} (23. Nxa4 Qd7 24. Nc5 Qc8 $11) 23... Qf7 {[%emt 0:01:39]} 24. Bxc6 {[%emt 0:02:46]} Ke7 {[%emt 0:00:06]} (24... Bxc5 $142 25. dxc5 Nd7) 25. a4 {[%emt 0:16:49]} Rb8 {[%emt 0:09:47]} 26. a5 {[%emt 0:00:58]} f4 {[%emt 0:01:22]} 27. axb6 {[%emt 0:01:21]} Rxb6 {[%emt 0:00:08]} 28. Qc8 {[%emt 0:00:22] Weighted Error Value: White=0.06 (flawless) /Black=0.88.  Mistake:       	---       	Black=4      Inaccurate:     	---       	Black=4      OK:         	White=10    	Black=5      Best:        	---       	Black=4      Brilliant:      	White=1     	---} 1-0

[Event "Azerbaijan-ch 1st League 2025"]
[Site "Baku"]
[Date "2025.01.08"]
[Round "3.8"]
[White "Allajov, Ramil"]
[Black "Suleymanli, Suleyman"]
[Result "0-1"]
[Annotator "TA"]
[ECO "D55"]
[WhiteElo "2079"]
[BlackElo "2280"]
[PlyCount "102"]
[EventDate "2025.01.05"]
[EventType "swiss"]
[EventCountry "AZE"]
[SourceTitle "playchess.com"]
[Source "ChessBase"]
[SourceQuality "1"]
[TimeControl "40/5400+30:1800+30"]

{[%evp 18,102,12,1,2,5,12,12,14,17,16,3,34,10,29,0,0,0,10,0,0,0,0,-24,-16,-16,-12,-24,-16,-23,-12,-95,-72,-72,0,0,0,-149,-149,-185,-182,-182,-142,-142,-133,-128,-128,-122,-144,-144,-140,-134,-130,-145,-134,-136,-122,-127,-124,-147,-148,-152,-146,-144,-132,-143,-121,-124,-120,-132,-145,-166,-176,-349,-247,-256,-243,-519,-531,-531,-498,-29975,-29976,-29975,-29976,-29976,-29977]} 1. c4 {[%emt 0:00:05]} e6 {[%emt 0:00:15]} 2. d4 {[%emt 0:00:49]} d5 {[%emt 0:00:06]} 3. Nf3 {[%emt 0:00:12]} Nf6 {[%emt 0:00:16]} 4. Bg5 {[%emt 0:00:02]} Be7 {[%emt 0:01:22]} 5. Nc3 {[%emt 0:00:11]} O-O {[%emt 0:00:15]} 6. e3 {[%emt 0:00:03]} b6 {[%emt 0:00:43]} 7. cxd5 {[%emt 0:00:56]} Nxd5 {[%emt 0:00:07]} 8. Bxe7 {[%emt 0:00:12]} Qxe7 {[%emt 0:00:02]} 9. Nxd5 {[%emt 0:00:19]} exd5 {[%emt 0:00:03]} 10. Be2 {[%emt 0:00:09]} Be6 {[%emt 0:01:17]} 11. O-O {[%emt 0:00:59]} Nd7 {[%emt 0:01:29]} 12. Qa4 {[%emt 0:00:36]} c5 {[%emt 0:00:22] The position is equal.} 13. Qa3 {[%emt 0:00:08]} Rfc8 {[%emt 0:01:58]} 14. Rac1 {[%emt 0:04:49]} Kf8 {[%emt 0:01:26]} 15. dxc5 {[%emt 0:00:53]} bxc5 {[%emt 0:00:08]} 16. b3 {[%emt 0:07:03]} a5 {[%emt 0:05:41]} 17. Bb5 {[%emt 0:04:26]} a4 {[%emt 0:15:53]} 18. bxa4 {[%emt 0:03:14]} c4 {[%emt 0:00:38]} 19. Qc3 {[%emt 0:14:57][%cal Oe3e4]} Nc5 {[%emt 0:02:06][%cal Of8g8]} 20. Ne5 {[%emt 0:00:16]} Kg8 {[%emt 0:07:34]} 21. a5 {[%emt 0:24:15]} (21. Nc6 Qd6 22. Nb4 Nxa4 23. Bxa4 Rxa4 $15) 21... Ne4 {[%emt 0:09:12]} 22. Qd4 {[%emt 0:03:16][%cal Re5c4]} (22. Nc6 $2 Rxc6 23. Qe1 Rcc8 $19) 22... Qc5 {[%emt 0:01:06]} 23. Qxc5 {[%emt 0:02:12]} Rxc5 {[%emt 0:02:40]} 24. Bc6 {[%emt 0:00:30]} (24. a4 $11) 24... Raxa5 {[%emt 0:00:54][%cal Of7f6]} 25. Nxc4 {[%emt 0:00:20]} Ra7 {[%emt 0:17:36] Black is more active.} (25... Rxa2 $17 26. Ne5 Rxf2 27. Rxc5 Rxf1+ 28. Kxf1 Nxc5) 26. Ne5 $11 {[%emt 0:01:00]} Nc3 {[%emt 0:00:13]} 27. Bb5 {[%emt 0:01:26] [#] Repels Ne2+} Rac7 $1 $36 {[%emt 0:00:33][%mdl 2048] Black is in control.} 28. Rxc3 {[%emt 0:08:24]} Rxc3 {[%emt 0:00:07]} 29. a4 {[%emt 0:00:02]} f6 {[%emt 0:02:04]} 30. Nf3 {[%emt 0:00:05]} Bd7 {[%emt 0:02:22]} 31. Nd4 {[%emt 0:00:06]} Rc1 {[%emt 0:00:42]} 32. Bxd7 {[%emt 0:04:27] Black must now prevent Be6+.} Rxf1+ {[%emt 0:01:25]} 33. Kxf1 {[%emt 0:00:00]} Rxd7 {[%emt 0:00:02][%mdl 4096] Endgame. KR-KN} 34. Nb5 {[%emt 0:00:07] Wards off Ra7} Rd8 {[%emt 0:01:15]} 35. Ke2 {[%emt 0:00:34]} Kf7 {[%emt 0:01:07]} 36. Kd3 {[%emt 0:00:48]} Ra8 {[%emt 0:00:16]} 37. Nc3 {[%emt 0:02:12]} Ke6 {[%emt 0:01:17]} 38. Kd4 {[%emt 0:01:58]} Kd6 {[%emt 0:02:40]} 39. Nb5+ {[%emt 0:03:17]} Kc6 {[%emt 0:00:27]} 40. Nc3 {[%emt 0:00:00]} Ra5 {[%emt 0:00:00]} 41. g4 {[%emt 0:03:35]} Rc5 {[%emt 0:02:25]} 42. Kd3 {[%emt 0:00:07]} Rc4 {[%emt 0:02:40]} 43. e4 {[%emt 0:08:02]} Kc5 {[%emt 0:00:11] Hoping for ...d4.} 44. Nxd5 {[%emt 0:00:11]} Rxa4 {[%emt 0:00:18]} 45. Ke3 $2 {[%emt 0:00:41]} (45. f3) 45... Ra3+ $19 {[%emt 0:00:30]} 46. Kf4 {[%emt 0:00:05]} Rh3 {[%emt 0:03:07][%cal Oc5d4] And now ...Kd4! would win.} (46... g5+ 47. Kf5 $17) 47. Nc7 $2 {[%emt 0:02:14]} (47. g5 fxg5+ (47... Rxh2 48. Kg3 $11) 48. Kxg5) 47... g5+ {[%emt 0:01:44]} ({Not} 47... Rxh2 48. Kg3 Rh1 49. Ne6+ Kd6 50. Nxg7 $11) 48. Kf5 {[%emt 0:00:04]} Kd6 {[%emt 0:00:08][%cal Rh3f3]} 49. e5+ {[%emt 0:16:21] [#]} (49. Nb5+ $19 Ke7 (49... Kc5 $2 50. Nc7 $19) 50. Nd4) 49... Kxc7 {[%emt 0:01:11] Black mates.} 50. exf6 {[%emt 0:01:45]} Kd7 {[%emt 0:00:38]} 51. Kxg5 {[%emt 0:01:00]} Rxh2 {[%emt 0:00:11] Weighted Error Value: White=0.40/Black=0.08 (flawless) .  Mistake:       	White=5     	Black=1      Inaccurate:     	White=1     	Black=1      OK:         	White=17    	Black=15     Best:        	White=2     	Black=7      Strong:       	---       	Black=1} 0-1

[Event "Azerbaijan-ch 1st League 2025"]
[Site "Baku"]
[Date "2025.01.08"]
[Round "3.9"]
[White "Israilov, Agil"]
[Black "Isfandiyarli, Kamal"]
[Result "1/2-1/2"]
[Annotator "TA"]
[ECO "C00"]
[WhiteElo "2280"]
[BlackElo "2027"]
[PlyCount "75"]
[EventDate "2025.01.05"]
[EventType "swiss"]
[EventCountry "AZE"]
[SourceTitle "playchess.com"]
[Source "ChessBase"]
[SourceQuality "1"]
[TimeControl "40/5400+30:1800+30"]

{[%evp 17,75,0,0,0,0,-2,0,0,14,0,0,-26,-33,-27,-18,-16,33,34,43,50,52,0,0,0,0,0,20,0,0,-18,6,9,12,0,0,0,7,12,9,4,13,2,5,6,8,4,12,18,12,0,0,0,0,0,0,0,0,0,0,0]} 1. Nf3 {[%emt 0:00:02]} d5 {[%emt 0:02:04]} 2. d3 {[%emt 0:00:01]} Nf6 {[%emt 0:00:37]} 3. Nbd2 {[%emt 0:00:05]} c5 {[%emt 0:06:16]} 4. g3 {[%emt 0:00:24]} Nc6 {[%emt 0:01:17]} 5. Bg2 {[%emt 0:00:05]} e6 {[%emt 0:00:19]} 6. e4 {[%emt 0:00:20]} Be7 {[%emt 0:01:41]} 7. O-O {[%emt 0:00:07]} O-O {[%emt 0:01:46]} 8. Re1 {[%emt 0:00:17]} b5 {[%emt 0:07:37]} 9. a4 {[%emt 0:04:43]} b4 {[%emt 0:00:38]} 10. b3 {[%emt 0:05:16]} Ba6 {[%emt 0:03:56]} 11. Bb2 {[%emt 0:02:04]} Rc8 {[%emt 0:02:15]} 12. exd5 {[%emt 0:01:52]} exd5 {[%emt 0:04:03]} 13. Nh4 {[%emt 0:00:29]} (13. Ne5 {simplifies} Nxe5 14. Rxe5 Bb7 15. Qf1) 13... Ne8 {[%emt 0:07:36]} 14. Qg4 {[%emt 0:02:29]} Bf6 {[%emt 0:05:27]} 15. Bxf6 {[%emt 0:06:24]} Nxf6 {[%emt 0:00:08]} 16. Qd1 {[%emt 0:09:04] [#]} c4 {[%emt 0:07:57]} 17. bxc4 {[%emt 0:01:52]} dxc4 {[%emt 0:00:11]} 18. dxc4 {[%emt 0:02:57]} g6 {[%emt 0:04:57] Dodges Nf5} 19. c5 {[%emt 0:06:15]} Nd4 {[%emt 0:00:35]} 20. Nhf3 $1 {[%emt 0:05:01]} Nxf3+ {[%emt 0:03:30]} (20... Rxc5 $2 {loses.} 21. Nxd4 Qxd4 22. Ne4 $18) 21. Qxf3 {[%emt 0:00:47]} Rxc5 $1 {[%emt 0:01:16][%cal Oc5f5] ...Rf5! is the strong threat.} ({Much weaker is} 21... Qxd2 $6 22. Qxf6 Be2 23. c6 $16) 22. Nb3 {[%emt 0:01:24]} Rc3 {[%emt 0:03:27]} 23. Qf4 {[%emt 0:00:17] And now Rad1 would win.} Re8 {[%emt 0:05:46]} 24. Rxe8+ {[%emt 0:08:16]} Nxe8 {[%emt 0:00:02]} 25. Qxb4 {[%emt 0:01:28]} Rxc2 {[%emt 0:00:26]} 26. Re1 {[%emt 0:02:35]} Re2 {[%emt 0:03:02]} 27. Rxe2 {[%emt 0:05:19]} Bxe2 {[%emt 0:00:04]} 28. Nd4 {[%emt 0:00:45]} Ba6 {[%emt 0:02:49]} 29. h3 {[%emt 0:02:13] Threatening Nc6.} Qb6 {[%emt 0:01:43]} 30. Nc6 {[%emt 0:02:17]} Qxb4 {[%emt 0:03:00]} 31. Nxb4 $11 {[%emt 0:00:10][%mdl 4096] Endgame KBN-KBN} Bc4 {[%emt 0:01:22][%cal Ba6c4,Bc4b3,Bb3a4][%mdl 32]} 32. Nc6 {[%emt 0:00:54]} a6 $1 {[%emt 0:00:22]} 33. Bf1 {[%emt 0:02:30]} Nd6 {[%emt 0:02:36]} 34. Nb4 {[%emt 0:02:14]} Bb3 {[%emt 0:01:36]} 35. a5 {[%emt 0:02:39]} Nb7 {[%emt 0:00:27]} 36. Nc6 {[%emt 0:01:04]} Ba4 {[%emt 0:00:10]} 37. Nb4 {[%emt 0:01:13]} Nxa5 {[%emt 0:00:07]} 38. Nxa6 {[%emt 0:00:41]} 1/2-1/2